[Event "Late-Titled-Tuesday-Blitz-September-12-2023"]
[Site "Chess.com"]
[Date "2023.09.12"]
[Round "1"]
[White "GameOverBro"]
[Black "Rud_Makarian"]
[Result "1/2-1/2"]
[WhiteElo "2481"]
[BlackElo "2954"]
[TimeControl "180+1"]
[EndTime "14:08:32 PDT"]
[Termination "Game drawn - insufficient material"]

1. e4 {[%clk 0:02:55.3]} 1... e5 {[%clk 0:02:58.4]} 2. Nf3 {[%clk 0:02:55.3]}
2... Nc6 {[%clk 0:02:58.9]} 3. Bb5 {[%clk 0:02:54.9]} 3... a6 {[%clk 0:02:57.5]}
4. Ba4 {[%clk 0:02:55.1]} 4... Bc5 {[%clk 0:02:58.1]} 5. c3 {[%clk 0:02:53.1]}
5... Nge7 {[%clk 0:02:56.8]} 6. d4 {[%clk 0:02:52.3]} 6... exd4 {[%clk
0:02:57.7]} 7. cxd4 {[%clk 0:02:52.6]} 7... Bb4+ {[%clk 0:02:58.1]} 8. Nc3
{[%clk 0:02:51.9]} 8... d5 {[%clk 0:02:55.8]} 9. e5 {[%clk 0:02:21.5]} 9... Bg4
{[%clk 0:02:50.6]} 10. Be3 {[%clk 0:02:20]} 10... O-O {[%clk 0:02:50.4]} 11. h3
{[%clk 0:02:18.4]} 11... Bh5 {[%clk 0:02:49.3]} 12. Bc2 {[%clk 0:02:15]} 12...
Qd7 {[%clk 0:02:39.6]} 13. Qd3 {[%clk 0:02:12.2]} 13... Bg6 {[%clk 0:02:39.4]}
14. Qd2 {[%clk 0:02:12.8]} 14... Na5 {[%clk 0:02:35]} 15. O-O {[%clk 0:01:58.4]}
15... Nc4 {[%clk 0:02:29.3]} 16. Qc1 {[%clk 0:01:58.7]} 16... Bxc3 {[%clk
0:02:15.2]} 17. bxc3 {[%clk 0:01:58.3]} 17... c5 {[%clk 0:02:12.8]} 18. Bb3
{[%clk 0:01:55.3]} 18... Nxe3 {[%clk 0:02:09.4]} 19. fxe3 {[%clk 0:01:54.9]}
19... Rac8 {[%clk 0:02:06.8]} 20. Qa3 {[%clk 0:01:50.6]} 20... cxd4 {[%clk
0:02:04.4]} 21. cxd4 {[%clk 0:01:50.1]} 21... Nf5 {[%clk 0:02:02.3]} 22. Ba4
{[%clk 0:01:45.7]} 22... b5 {[%clk 0:02:01.3]} 23. Bd1 {[%clk 0:01:46.2]} 23...
Ng3 {[%clk 0:01:58.7]} 24. Re1 {[%clk 0:01:43.6]} 24... Qb7 {[%clk 0:01:54.5]}
25. Qb2 {[%clk 0:01:34]} 25... Rc7 {[%clk 0:01:50.4]} 26. Rc1 {[%clk 0:01:33.3]}
26... Rfc8 {[%clk 0:01:50.8]} 27. Rxc7 {[%clk 0:01:32.8]} 27... Qxc7 {[%clk
0:01:51.4]} 28. Bb3 {[%clk 0:01:32.2]} 28... Be4 {[%clk 0:01:51.4]} 29. Qf2
{[%clk 0:01:16.5]} 29... Nf5 {[%clk 0:01:43.2]} 30. Ng5 {[%clk 0:01:11]} 30...
Nh6 {[%clk 0:01:32.5]} 31. Nxe4 {[%clk 0:01:09.9]} 31... dxe4 {[%clk 0:01:33.4]}
32. Qf4 {[%clk 0:01:07.3]} 32... a5 {[%clk 0:01:29.2]} 33. Qxe4 {[%clk
0:01:05.4]} 33... a4 {[%clk 0:01:29.8]} 34. Bd5 {[%clk 0:01:06]} 34... b4 {[%clk
0:01:28.3]} 35. e6 {[%clk 0:01:05.3]} 35... fxe6 {[%clk 0:01:28.3]} 36. Qxe6+
{[%clk 0:01:04.4]} 36... Kh8 {[%clk 0:01:28.8]} 37. Rf1 {[%clk 0:01:01.4]} 37...
Qb8 {[%clk 0:01:09.9]} 38. e4 {[%clk 0:00:54.5]} 38... Re8 {[%clk 0:01:05.2]}
39. Qd7 {[%clk 0:00:52.5]} 39... b3 {[%clk 0:01:05]} 40. axb3 {[%clk 0:00:52.2]}
40... axb3 {[%clk 0:01:05.9]} 41. Bxb3 {[%clk 0:00:52.4]} 41... Rxe4 {[%clk
0:00:50.4]} 42. Qb7 {[%clk 0:00:39.8]} 42... Re8 {[%clk 0:00:47.2]} 43. Qxb8
{[%clk 0:00:39.3]} 43... Rxb8 {[%clk 0:00:48.1]} 44. Be6 {[%clk 0:00:39.4]}
44... Rd8 {[%clk 0:00:44.9]} 45. d5 {[%clk 0:00:39.9]} 45... Ng8 {[%clk
0:00:40.9]} 46. Kf2 {[%clk 0:00:26.1]} 46... Nf6 {[%clk 0:00:39]} 47. Rd1 {[%clk
0:00:24]} 47... g5 {[%clk 0:00:35.6]} 48. Ke3 {[%clk 0:00:23.3]} 48... Kg7
{[%clk 0:00:35.8]} 49. Kd4 {[%clk 0:00:23.7]} 49... Ne8 {[%clk 0:00:35.7]} 50.
Ke5 {[%clk 0:00:23.8]} 50... Nd6 {[%clk 0:00:36.2]} 51. Rc1 {[%clk 0:00:24]}
51... Nf7+ {[%clk 0:00:18.6]} 52. Kf5 {[%clk 0:00:23.1]} 52... Nd6+ {[%clk
0:00:15.5]} 53. Kxg5 {[%clk 0:00:22.5]} 53... h6+ {[%clk 0:00:16.1]} 54. Kf4
{[%clk 0:00:22.7]} 54... Kf6 {[%clk 0:00:16.8]} 55. g4 {[%clk 0:00:21.5]} 55...
Ra8 {[%clk 0:00:16.7]} 56. Rc6 {[%clk 0:00:21.1]} 56... Ra4+ {[%clk 0:00:17.1]}
57. Kg3 {[%clk 0:00:19.8]} 57... Ke5 {[%clk 0:00:12.5]} 58. Rc7 {[%clk
0:00:17.3]} 58... Ra3+ {[%clk 0:00:12.8]} 59. Kg2 {[%clk 0:00:17.2]} 59... Ne4
{[%clk 0:00:12.8]} 60. Rh7 {[%clk 0:00:17.2]} 60... Ra2+ {[%clk 0:00:08.5]} 61.
Kf3 {[%clk 0:00:16.6]} 61... Ra3+ {[%clk 0:00:08.9]} 62. Ke2 {[%clk 0:00:17.3]}
62... Kd4 {[%clk 0:00:07.6]} 63. Bf5 {[%clk 0:00:15.8]} 63... Re3+ {[%clk
0:00:06.5]} 64. Kd1 {[%clk 0:00:15.4]} 64... Nf2+ {[%clk 0:00:05.6]} 65. Kc2
{[%clk 0:00:15.8]} 65... Rc3+ {[%clk 0:00:04.9]} 66. Kb2 {[%clk 0:00:16.1]}
66... Nd1+ {[%clk 0:00:04.7]} 67. Kb1 {[%clk 0:00:16.8]} 67... Kxd5 {[%clk
0:00:05.1]} 68. Rd7+ {[%clk 0:00:15.7]} 68... Ke5 {[%clk 0:00:05.3]} 69. Rxd1
{[%clk 0:00:16.6]} 69... Rxh3 {[%clk 0:00:05.8]} 70. Re1+ {[%clk 0:00:15.7]}
70... Kf4 {[%clk 0:00:05.5]} 71. Re4+ {[%clk 0:00:16.3]} 71... Kg5 {[%clk
0:00:06]} 72. Rc4 {[%clk 0:00:16.8]} 72... h5 {[%clk 0:00:05.9]} 73. gxh5 {[%clk
0:00:16.3]} 73... Rh1+ {[%clk 0:00:06.3]} 74. Kb2 {[%clk 0:00:16.4]} 74... Kxf5
{[%clk 0:00:06.9]} 75. Rc5+ {[%clk 0:00:16.3]} 75... Kg4 {[%clk 0:00:06.7]} 76.
Kc3 {[%clk 0:00:16.9]} 76... Rxh5 {[%clk 0:00:06.8]} 77. Rxh5 {[%clk 0:00:17.1]}
77... Kxh5 {[%clk 0:00:07.7]} 1/2-1/2

[Event "Late-Titled-Tuesday-Blitz-September-12-2023"]
[Site "Chess.com"]
[Date "2023.09.12"]
[Round "1"]
[White "newyorkmouse"]
[Black "kuli4ik"]
[Result "0-1"]
[WhiteElo "2472"]
[BlackElo "2945"]
[TimeControl "180+1"]
[EndTime "14:08:48 PDT"]
[Termination "kuli4ik won by checkmate"]

1. Nf3 {[%clk 0:02:55.6]} 1... c6 {[%clk 0:02:58.9]} 2. g3 {[%clk 0:02:55.3]}
2... Nf6 {[%clk 0:02:59.3]} 3. Bg2 {[%clk 0:02:55.3]} 3... Qa5 {[%clk
0:02:59.9]} 4. O-O {[%clk 0:02:54.2]} 4... e5 {[%clk 0:03:00]} 5. e4 {[%clk
0:02:28.3]} 5... d6 {[%clk 0:02:54]} 6. d4 {[%clk 0:02:25.4]} 6... Be7 {[%clk
0:02:53.1]} 7. Re1 {[%clk 0:02:21.9]} 7... O-O {[%clk 0:02:51.6]} 8. c4 {[%clk
0:02:21.7]} 8... Rd8 {[%clk 0:02:46.4]} 9. h3 {[%clk 0:02:20.2]} 9... Na6 {[%clk
0:02:42.5]} 10. b3 {[%clk 0:02:07.7]} 10... d5 {[%clk 0:02:28.6]} 11. exd5
{[%clk 0:01:26.1]} 11... e4 {[%clk 0:02:27]} 12. Nfd2 {[%clk 0:01:26.6]} 12...
cxd5 {[%clk 0:02:20.4]} 13. cxd5 {[%clk 0:01:26.3]} 13... Bb4 {[%clk 0:02:17.1]}
14. a3 {[%clk 0:01:12.7]} 14... Bf5 {[%clk 0:02:14.3]} 15. Nc4 {[%clk
0:01:03.3]} 15... Bxe1 {[%clk 0:02:10.9]} 16. Nxa5 {[%clk 0:01:03.8]} 16... Bxa5
{[%clk 0:02:11.6]} 17. Bg5 {[%clk 0:01:01.1]} 17... Rxd5 {[%clk 0:02:06.6]} 18.
Bxf6 {[%clk 0:01:00.4]} 18... gxf6 {[%clk 0:02:07.5]} 19. b4 {[%clk 0:00:58.8]}
19... Bb6 {[%clk 0:02:06.4]} 20. Nc3 {[%clk 0:00:46.9]} 20... Rxd4 {[%clk
0:02:05.9]} 21. Qe2 {[%clk 0:00:45.8]} 21... Re8 {[%clk 0:01:56.9]} 22. Rd1
{[%clk 0:00:45.2]} 22... e3 {[%clk 0:01:51.8]} 23. fxe3 {[%clk 0:00:41.4]} 23...
Rxe3 {[%clk 0:01:49.6]} 24. Qxe3 {[%clk 0:00:28.6]} 24... Rxd1+ {[%clk
0:00:52.2]} 25. Nxd1 {[%clk 0:00:29.5]} 25... Bxe3+ {[%clk 0:00:49.5]} 26. Nxe3
{[%clk 0:00:30.4]} 26... Bc8 {[%clk 0:00:47.1]} 27. Nd5 {[%clk 0:00:31.1]} 27...
Kg7 {[%clk 0:00:43]} 28. Ne7 {[%clk 0:00:31.4]} 28... Bd7 {[%clk 0:00:41.9]} 29.
Bxb7 {[%clk 0:00:31.5]} 29... Nc7 {[%clk 0:00:41.8]} 30. Kg2 {[%clk 0:00:28.9]}
30... f5 {[%clk 0:00:39.7]} 31. Nc6 {[%clk 0:00:21.3]} 31... Bxc6+ {[%clk
0:00:36.2]} 32. Bxc6 {[%clk 0:00:22.2]} 32... Kf6 {[%clk 0:00:36.6]} 33. a4
{[%clk 0:00:20.4]} 33... Ke5 {[%clk 0:00:35.4]} 34. Kf3 {[%clk 0:00:19.7]} 34...
Ne6 {[%clk 0:00:34.9]} 35. Ke3 {[%clk 0:00:16.2]} 35... f4+ {[%clk 0:00:34.1]}
36. gxf4+ {[%clk 0:00:15.8]} 36... Nxf4 {[%clk 0:00:35]} 37. Bd7 {[%clk
0:00:10.2]} 37... Nd5+ {[%clk 0:00:33.9]} 38. Kd3 {[%clk 0:00:08.5]} 38... Nxb4+
{[%clk 0:00:34.8]} 39. Kc4 {[%clk 0:00:09.4]} 39... Nd5 {[%clk 0:00:28.8]} 40.
Kb5 {[%clk 0:00:09.7]} 40... Nc3+ {[%clk 0:00:25]} 41. Kb4 {[%clk 0:00:09.2]}
41... Ne4 {[%clk 0:00:24]} 42. Kb5 {[%clk 0:00:08.5]} 42... f5 {[%clk
0:00:20.1]} 43. Bc6 {[%clk 0:00:08.6]} 43... f4 {[%clk 0:00:18.8]} 44. Kc4
{[%clk 0:00:07.8]} 44... Nd6+ {[%clk 0:00:16.5]} 45. Kd3 {[%clk 0:00:07]} 45...
h6 {[%clk 0:00:17]} 46. Ke2 {[%clk 0:00:06.3]} 46... a5 {[%clk 0:00:17.1]} 47.
Kf3 {[%clk 0:00:06.8]} 47... Nf5 {[%clk 0:00:17.3]} 48. Ba8 {[%clk 0:00:06.9]}
48... Ne3 {[%clk 0:00:16.3]} 49. Bb7 {[%clk 0:00:05.8]} 49... Nc4 {[%clk
0:00:15.7]} 50. Bc6 {[%clk 0:00:05.5]} 50... Nb6 {[%clk 0:00:15.3]} 51. Bb5
{[%clk 0:00:05.1]} 51... Nd5 {[%clk 0:00:15.2]} 52. Bc6 {[%clk 0:00:02.6]} 52...
Nf6 {[%clk 0:00:15.1]} 53. Bb5 {[%clk 0:00:02.5]} 53... Ne4 {[%clk 0:00:13.7]}
54. h4 {[%clk 0:00:03.4]} 54... Nc3 {[%clk 0:00:12.5]} 55. Be8 {[%clk
0:00:04.3]} 55... Nd5 {[%clk 0:00:10.9]} 56. h5 {[%clk 0:00:03.5]} 56... Nf6
{[%clk 0:00:11.1]} 57. Bg6 {[%clk 0:00:02.8]} 57... Nd5 {[%clk 0:00:10.7]} 58.
Be8 {[%clk 0:00:02.9]} 58... Kf5 {[%clk 0:00:10.3]} 59. Bd7+ {[%clk 0:00:02.8]}
59... Kg5 {[%clk 0:00:10.2]} 60. Be8 {[%clk 0:00:03.7]} 60... Nf6 {[%clk
0:00:10.3]} 61. Bf7 {[%clk 0:00:02.6]} 61... Nd7 {[%clk 0:00:10.2]} 62. Be8
{[%clk 0:00:02.7]} 62... Nc5 {[%clk 0:00:09.8]} 63. Bc6 {[%clk 0:00:02.5]} 63...
Kxh5 {[%clk 0:00:09.8]} 64. Be8+ {[%clk 0:00:02.5]} 64... Kg5 {[%clk 0:00:10]}
65. Bc6 {[%clk 0:00:02.9]} 65... h5 {[%clk 0:00:10.2]} 66. Bd7 {[%clk
0:00:02.9]} 66... Nxd7 {[%clk 0:00:08.9]} 67. Kg2 {[%clk 0:00:03.4]} 67... Nb6
{[%clk 0:00:09.4]} 68. Kh3 {[%clk 0:00:03.1]} 68... Nxa4 {[%clk 0:00:10.3]} 69.
Kh2 {[%clk 0:00:03.7]} 69... Nc5 {[%clk 0:00:10.7]} 70. Kh3 {[%clk 0:00:04.6]}
70... a4 {[%clk 0:00:11.3]} 71. Kh2 {[%clk 0:00:05.5]} 71... Kg4 {[%clk
0:00:11.2]} 72. Kh1 {[%clk 0:00:05.8]} 72... a3 {[%clk 0:00:12.1]} 73. Kg2
{[%clk 0:00:06.7]} 73... a2 {[%clk 0:00:12.2]} 74. Kf2 {[%clk 0:00:07.6]} 74...
a1=Q {[%clk 0:00:11.2]} 75. Ke2 {[%clk 0:00:08.5]} 75... Qc3 {[%clk 0:00:11.1]}
76. Kd1 {[%clk 0:00:08.6]} 76... Qb2 {[%clk 0:00:11.2]} 77. Ke1 {[%clk
0:00:09.1]} 77... Kf3 {[%clk 0:00:11.4]} 78. Kd1 {[%clk 0:00:10]} 78... Ke3
{[%clk 0:00:11.2]} 79. Ke1 {[%clk 0:00:10.5]} 79... Qb1# {[%clk 0:00:12]} 0-1

[Event "Late-Titled-Tuesday-Blitz-September-12-2023"]
[Site "Chess.com"]
[Date "2023.09.12"]
[Round "1"]
[White "leoduarte"]
[Black "KNVB"]
[Result "0-1"]
[WhiteElo "2423"]
[BlackElo "2778"]
[TimeControl "180+1"]
[EndTime "14:08:48 PDT"]
[Termination "KNVB won by checkmate"]

1. d4 {[%clk 0:03:00.3]} 1... e5 {[%clk 0:02:34.2]} 2. dxe5 {[%clk 0:02:57.2]}
2... Nc6 {[%clk 0:02:26.8]} 3. Nf3 {[%clk 0:02:55]} 3... Qe7 {[%clk 0:02:26.7]}
4. Bf4 {[%clk 0:02:25.7]} 4... Qb4+ {[%clk 0:02:26.2]} 5. Bd2 {[%clk 0:02:25.9]}
5... Qxb2 {[%clk 0:02:26.8]} 6. Nc3 {[%clk 0:02:25.4]} 6... Bb4 {[%clk
0:02:27.5]} 7. Rb1 {[%clk 0:02:19.7]} 7... Qxc3 {[%clk 0:02:27.8]} 8. Bxc3
{[%clk 0:02:10.7]} 8... Bxc3+ {[%clk 0:02:28.7]} 9. Nd2 {[%clk 0:02:11]} 9...
Nxe5 {[%clk 0:02:29.4]} 10. e3 {[%clk 0:01:52.6]} 10... Nf6 {[%clk 0:02:29.4]}
11. Rb3 {[%clk 0:01:50.9]} 11... Ba5 {[%clk 0:02:29.3]} 12. Bd3 {[%clk
0:01:48.5]} 12... O-O {[%clk 0:02:29]} 13. O-O {[%clk 0:01:48.2]} 13... d5
{[%clk 0:02:29.1]} 14. h3 {[%clk 0:01:39]} 14... Bb6 {[%clk 0:02:19.7]} 15. Nf3
{[%clk 0:01:37.7]} 15... Nxf3+ {[%clk 0:02:19.9]} 16. Qxf3 {[%clk 0:01:38.6]}
16... Be6 {[%clk 0:02:18]} 17. Bf5 {[%clk 0:01:37.5]} 17... Rae8 {[%clk
0:02:17.2]} 18. a4 {[%clk 0:01:34.5]} 18... Bxf5 {[%clk 0:02:11.5]} 19. Qxf5
{[%clk 0:01:35.4]} 19... Re4 {[%clk 0:02:12.1]} 20. a5 {[%clk 0:01:23.8]} 20...
Bxa5 {[%clk 0:02:12]} 21. Rxb7 {[%clk 0:01:19.6]} 21... Bb6 {[%clk 0:02:12.5]}
22. g4 {[%clk 0:01:15.4]} 22... h6 {[%clk 0:02:10.3]} 23. Rd1 {[%clk 0:01:12.9]}
23... Rfe8 {[%clk 0:01:41.4]} 24. Kg2 {[%clk 0:01:04.7]} 24... R4e5 {[%clk
0:01:13.1]} 25. Qf3 {[%clk 0:01:01.6]} 25... h5 {[%clk 0:01:02.6]} 26. gxh5
{[%clk 0:00:49.4]} 26... Rg5+ {[%clk 0:00:52.6]} 27. Kh2 {[%clk 0:00:47.6]}
27... Rxh5 {[%clk 0:00:53.5]} 28. Rg1 {[%clk 0:00:45.4]} 28... Kf8 {[%clk
0:00:50.5]} 29. Qg3 {[%clk 0:00:36.9]} 29... g6 {[%clk 0:00:45.6]} 30. Rxc7
{[%clk 0:00:36.5]} 30... Bxc7 {[%clk 0:00:46.3]} 31. Qxc7 {[%clk 0:00:36.7]}
31... Rf5 {[%clk 0:00:32.4]} 32. Rg2 {[%clk 0:00:31]} 32... Re7 {[%clk
0:00:20.9]} 33. Qc8+ {[%clk 0:00:29.1]} 33... Re8 {[%clk 0:00:12.8]} 34. Qc5+
{[%clk 0:00:26.9]} 34... Re7 {[%clk 0:00:10.3]} 35. Kg1 {[%clk 0:00:26.4]} 35...
Ne4 {[%clk 0:00:08.6]} 36. Qc8+ {[%clk 0:00:25.8]} 36... Re8 {[%clk 0:00:07.6]}
37. Qd7 {[%clk 0:00:24.2]} 37... a6 {[%clk 0:00:05.7]} 38. Qa7 {[%clk
0:00:23.4]} 38... Re6 {[%clk 0:00:05.4]} 39. Qa8+ {[%clk 0:00:23.2]} 39... Kg7
{[%clk 0:00:05.8]} 40. Qa7 {[%clk 0:00:18.8]} 40... Ref6 {[%clk 0:00:03.9]} 41.
f4 {[%clk 0:00:15]} 41... Re6 {[%clk 0:00:04.4]} 42. Re2 {[%clk 0:00:14.9]}
42... Ng3 {[%clk 0:00:01.6]} 43. Re1 {[%clk 0:00:13.2]} 43... Ne4 {[%clk
0:00:01.8]} 44. Qd4+ {[%clk 0:00:13.4]} 44... Kh7 {[%clk 0:00:01.5]} 45. Ra1
{[%clk 0:00:13.9]} 45... Re8 {[%clk 0:00:01.5]} 46. Rb1 {[%clk 0:00:14.3]} 46...
Nf6 {[%clk 0:00:01.9]} 47. Rb7 {[%clk 0:00:14.5]} 47... Kg8 {[%clk 0:00:02.3]}
48. Qa7 {[%clk 0:00:14.1]} 48... Nh5 {[%clk 0:00:02.2]} 49. Qxa6 {[%clk
0:00:14]} 49... Rf6 {[%clk 0:00:02.3]} 50. Qa4 {[%clk 0:00:13.4]} 50... Rfe6
{[%clk 0:00:02.7]} 51. Rb3 {[%clk 0:00:12.7]} 51... Ng7 {[%clk 0:00:02.9]} 52.
Qd4 {[%clk 0:00:12.2]} 52... Nf5 {[%clk 0:00:03.1]} 53. Qxd5 {[%clk 0:00:12.5]}
53... Nxe3 {[%clk 0:00:03.8]} 54. Qf3 {[%clk 0:00:10.7]} 54... Nxc2 {[%clk
0:00:04]} 55. Rb1 {[%clk 0:00:09.6]} 55... Nd4 {[%clk 0:00:03.6]} 56. Qf2 {[%clk
0:00:10]} 56... Nf5 {[%clk 0:00:02.7]} 57. Rb2 {[%clk 0:00:06.9]} 57... Re1+
{[%clk 0:00:02.6]} 58. Kg2 {[%clk 0:00:07.4]} 58... R1e4 {[%clk 0:00:03.4]} 59.
Rc2 {[%clk 0:00:07.1]} 59... Nd4 {[%clk 0:00:03.6]} 60. Ra2 {[%clk 0:00:07.2]}
60... Re2 {[%clk 0:00:03.5]} 61. Rxe2 {[%clk 0:00:01.3]} 61... Rxe2 {[%clk
0:00:04.4]} 62. Kg1 {[%clk 0:00:01.5]} 62... Rxf2 {[%clk 0:00:05.1]} 63. Kxf2
{[%clk 0:00:02.2]} 63... f5 {[%clk 0:00:05.2]} 64. Kg3 {[%clk 0:00:03]} 64...
Kg7 {[%clk 0:00:05.5]} 65. Kh4 {[%clk 0:00:03.8]} 65... Kh6 {[%clk 0:00:06.2]}
66. Kg3 {[%clk 0:00:04.2]} 66... Kh5 {[%clk 0:00:06.7]} 67. h4 {[%clk
0:00:04.6]} 67... Ne6 {[%clk 0:00:07]} 68. Kh3 {[%clk 0:00:05.3]} 68... Nxf4+
{[%clk 0:00:07.5]} 69. Kg3 {[%clk 0:00:06.2]} 69... Ne6 {[%clk 0:00:08.4]} 70.
Kf3 {[%clk 0:00:07]} 70... Kxh4 {[%clk 0:00:08.5]} 71. Kg2 {[%clk 0:00:07.9]}
71... g5 {[%clk 0:00:09.4]} 72. Kf2 {[%clk 0:00:08.8]} 72... g4 {[%clk
0:00:10.2]} 73. Kg1 {[%clk 0:00:09.7]} 73... Kg5 {[%clk 0:00:11.1]} 74. Kg2
{[%clk 0:00:10.6]} 74... f4 {[%clk 0:00:12]} 75. Kg1 {[%clk 0:00:11.5]} 75... f3
{[%clk 0:00:12.9]} 76. Kh2 {[%clk 0:00:11.9]} 76... Kf4 {[%clk 0:00:13.8]} 77.
Kg1 {[%clk 0:00:12.2]} 77... g3 {[%clk 0:00:14.6]} 78. Kh1 {[%clk 0:00:12.6]}
78... Ke3 {[%clk 0:00:10.3]} 79. Kg1 {[%clk 0:00:12.9]} 79... Ke2 {[%clk
0:00:10.3]} 80. Kh1 {[%clk 0:00:13.3]} 80... Nf4 {[%clk 0:00:08.9]} 81. Kg1
{[%clk 0:00:13.8]} 81... f2+ {[%clk 0:00:08.5]} 82. Kh1 {[%clk 0:00:13.3]} 82...
f1=R# {[%clk 0:00:08.5]} 0-1

[Event "Late-Titled-Tuesday-Blitz-September-12-2023"]
[Site "Chess.com"]
[Date "2023.09.12"]
[Round "1"]
[White "Dewarfd"]
[Black "guillembaches"]
[Result "0-1"]
[WhiteElo "2200"]
[BlackElo "2534"]
[TimeControl "180+1"]
[EndTime "14:08:53 PDT"]
[Termination "guillembaches won by resignation"]

1. d4 {[%clk 0:02:59.6]} 1... Nf6 {[%clk 0:02:59.3]} 2. e3 {[%clk 0:02:58.8]}
2... c5 {[%clk 0:02:56.6]} 3. dxc5 {[%clk 0:02:56.9]} 3... e6 {[%clk 0:02:53.2]}
4. Nf3 {[%clk 0:02:56.6]} 4... Bxc5 {[%clk 0:02:52.2]} 5. c4 {[%clk 0:02:56.2]}
5... b6 {[%clk 0:02:50.7]} 6. a3 {[%clk 0:02:56]} 6... Bb7 {[%clk 0:02:50.2]} 7.
b4 {[%clk 0:02:55.5]} 7... Be7 {[%clk 0:02:50.5]} 8. Bb2 {[%clk 0:02:55.2]} 8...
d6 {[%clk 0:02:49.4]} 9. Be2 {[%clk 0:02:54.7]} 9... Nbd7 {[%clk 0:02:49.4]} 10.
O-O {[%clk 0:02:54.4]} 10... O-O {[%clk 0:02:49.5]} 11. Qb3 {[%clk 0:02:53.3]}
11... a6 {[%clk 0:02:48.2]} 12. Rd1 {[%clk 0:02:52.8]} 12... Qc7 {[%clk
0:02:47.8]} 13. Nbd2 {[%clk 0:02:51.4]} 13... Rac8 {[%clk 0:02:47.3]} 14. Rac1
{[%clk 0:02:51.1]} 14... Qb8 {[%clk 0:02:44.1]} 15. Nd4 {[%clk 0:02:46.9]} 15...
Ne5 {[%clk 0:02:39.7]} 16. N2f3 {[%clk 0:02:44.7]} 16... Ng6 {[%clk 0:02:35.2]}
17. Nd2 {[%clk 0:02:37.3]} 17... Rfd8 {[%clk 0:02:31.9]} 18. Bf3 {[%clk
0:02:36.7]} 18... Ne5 {[%clk 0:02:31.8]} 19. Bxb7 {[%clk 0:02:35.9]} 19... Qxb7
{[%clk 0:02:32.7]} 20. N2f3 {[%clk 0:02:35.7]} 20... Ned7 {[%clk 0:02:27.5]} 21.
Ne2 {[%clk 0:02:27.1]} 21... b5 {[%clk 0:02:24.2]} 22. Ng3 {[%clk 0:02:22.6]}
22... Nb6 {[%clk 0:02:18]} 23. cxb5 {[%clk 0:02:16.3]} 23... axb5 {[%clk
0:02:18.9]} 24. Nd4 {[%clk 0:02:16]} 24... Nc4 {[%clk 0:02:15.6]} 25. Ba1 {[%clk
0:01:55.9]} 25... d5 {[%clk 0:02:12]} 26. a4 {[%clk 0:01:41.2]} 26... bxa4
{[%clk 0:02:07.2]} 27. Qxa4 {[%clk 0:01:41.3]} 27... Qxb4 {[%clk 0:01:58.5]} 28.
Qa7 {[%clk 0:01:11.5]} 28... Ra8 {[%clk 0:01:41.1]} 29. Qc7 {[%clk 0:00:58.7]}
29... Bd6 {[%clk 0:01:36.2]} 30. Qc6 {[%clk 0:00:53.5]} 30... Rdc8 {[%clk
0:01:30.5]} 31. Qb5 {[%clk 0:00:53.5]} 31... Rab8 {[%clk 0:01:20.2]} 32. Qa6
{[%clk 0:00:45.7]} 32... Ra8 {[%clk 0:01:13.5]} 33. Qb5 {[%clk 0:00:43.4]} 33...
Rcb8 {[%clk 0:01:11.1]} 34. Qxb4 {[%clk 0:00:33.7]} 34... Rxb4 {[%clk 0:01:09]}
35. Nc6 {[%clk 0:00:34.1]} 35... Rba4 {[%clk 0:01:06.2]} 36. Bxf6 {[%clk
0:00:32.3]} 36... gxf6 {[%clk 0:01:07.1]} 37. e4 {[%clk 0:00:28.2]} 37... dxe4
{[%clk 0:00:58.9]} 38. Nxe4 {[%clk 0:00:28.2]} 38... Be5 {[%clk 0:00:56.1]} 39.
Nxe5 {[%clk 0:00:28.4]} 39... fxe5 {[%clk 0:00:53.4]} 40. Nf6+ {[%clk
0:00:26.3]} 40... Kg7 {[%clk 0:00:52.1]} 41. Nd7 {[%clk 0:00:26.9]} 41... R8a5
{[%clk 0:00:33]} 42. Re1 {[%clk 0:00:14.9]} 42... Rd5 {[%clk 0:00:30.8]} 43.
Rxc4 {[%clk 0:00:10.9]} 43... Rxc4 {[%clk 0:00:28.8]} 44. Nb6 {[%clk 0:00:11.5]}
44... Rcc5 {[%clk 0:00:20.6]} 45. Nxd5 {[%clk 0:00:11.1]} 45... exd5 {[%clk
0:00:21]} 46. g4 {[%clk 0:00:09.9]} 46... d4 {[%clk 0:00:20.1]} 47. h3 {[%clk
0:00:09.8]} 47... Kf6 {[%clk 0:00:20.3]} 48. Kg2 {[%clk 0:00:10.3]} 48... Rc3
{[%clk 0:00:20.6]} 49. f3 {[%clk 0:00:10.2]} 49... Ke6 {[%clk 0:00:17.7]} 50. f4
{[%clk 0:00:07.7]} 50... f6 {[%clk 0:00:18]} 51. g5 {[%clk 0:00:08.3]} 51... Re3
{[%clk 0:00:15.7]} 52. Rxe3 {[%clk 0:00:07.7]} 52... dxe3 {[%clk 0:00:16.2]} 53.
gxf6 {[%clk 0:00:08.4]} 53... exf4 {[%clk 0:00:15.9]} 54. Kf3 {[%clk 0:00:08.7]}
54... Kxf6 {[%clk 0:00:16.3]} 55. h4 {[%clk 0:00:08.7]} 55... h5 {[%clk
0:00:15.2]} 56. Kxf4 {[%clk 0:00:07.1]} 56... e2 {[%clk 0:00:15.1]} 57. Kg3
{[%clk 0:00:08]} 57... e1=Q+ {[%clk 0:00:15.1]} 58. Kh3 {[%clk 0:00:08.9]} 58...
Qe3+ {[%clk 0:00:14.9]} 59. Kg2 {[%clk 0:00:08.6]} 59... Qa3 {[%clk 0:00:15.2]}
60. Kh2 {[%clk 0:00:08.6]} 60... Ke7 {[%clk 0:00:15.6]} 61. Kg2 {[%clk
0:00:09.5]} 61... Kf8 {[%clk 0:00:15.8]} 62. Kh2 {[%clk 0:00:10.4]} 62... Kg7
{[%clk 0:00:16.1]} 63. Kg2 {[%clk 0:00:11.3]} 63... Kg6 {[%clk 0:00:16.4]} 64.
Kh2 {[%clk 0:00:12.2]} 64... Kf5 {[%clk 0:00:16.8]} 65. Kg2 {[%clk 0:00:13.1]}
65... Kg4 {[%clk 0:00:17]} 66. Kf2 {[%clk 0:00:14]} 66... Kxh4 {[%clk
0:00:17.1]} 67. Kg2 {[%clk 0:00:14.9]} 67... Kg5 {[%clk 0:00:17.2]} 68. Kf2
{[%clk 0:00:15.3]} 68... h4 {[%clk 0:00:16.9]} 69. Kg2 {[%clk 0:00:16.2]} 69...
h3+ {[%clk 0:00:17]} 70. Kh2 {[%clk 0:00:16.9]} 70... Kg4 {[%clk 0:00:17.2]} 71.
Kg1 {[%clk 0:00:17]} 71... Qa2 {[%clk 0:00:17.5]} 0-1